Cogmind - Beta 10.2 @@@ ROGUE MODE // 2020.11.29 @ 10:33:33 // Halloween2020/ForbiddenLore Player: EgoOrb Result: Destroyed by S-27 Virus with Autogun Performance ------------- Evolutions (4) 2000 Regions Visited (5) 1000 Robots Destroyed (41) 205 Value Destroyed (1573) 1573 Prototype IDs (0) 0 Alien Tech Used (0) 0 Bonus (0) 0 TOTAL SCORE: 4778 Bonus ------- None Cogmind --------- Core Integrity 0/850 Matter 285/300 Energy 163/290 System Corruption 3% Temperature Cool (0) Movement Treading (160) Location -6/Factory Parts ------- > --- POWER (2) -------- Improved Deuterium Engine > --- PROPULSION (3) --- Light Treads > --- UTILITY (7) ------ Advanced Melee Analysis Suite Advanced Melee Analysis Suite Advanced Melee Analysis Suite > --- WEAPON (3) ------- (None) > --- INVENTORY (4) ---- Gatling Laser Peak State ------------ > --- POWER ------------ Nuclear Core Improved Deuterium Engine > --- PROPULSION ------- Medium Treads Medium Treads Wheel > --- UTILITY ---------- Melee Analysis Suite Energy Filter Hacking Suite System Shield System Shield > --- WEAPON ----------- Heavy Particle Cannon Greatsword > --- INVENTORY -------- Improved Heat Sink [Rating: 43] Favorites ----------- Power Nuclear Core Engine Ion Engine Power Core Nuclear Core Propulsion Medium Treads Treads Medium Treads Leg Aluminum Leg Wheel Wheel Hover Unit Airjet Flight Unit Cesium-ion Thruster Utility System Shield Device Energy Filter Processor Melee Analysis Suite Hackware System Shield Protection Reflective Plating Weapon Greatsword Energy Gun Particle Gun Energy Cannon Heavy Particle Cannon Ballistic Gun Heavy Assault Rifle Launcher Grenade Launcher Slashing Weapon Greatsword Build | -11 -10 -9 -8 -7 -6 ------- Run | Scr Mat Mat Mat Fac Fac Slots Evolved 8 | . . 2 2 2 2 Power 1 | . . 1 . . . Propulsion 1 | . . 1 . . . Utility 5 | . . . 1 2 2 Weapon 1 | . . . 1 . . Parts Attached 70 | 5 10 10 21 13 11 Power 12 | 1 . 2 5 3 1 Engine 7 | 1 . 2 2 1 1 Core 5 | . . . 3 2 . Reactor . | . . . . . . Propulsion 18 | 2 1 4 7 3 1 Treads 7 | 2 . . 1 3 1 Leg 1 | . 1 . . . . Wheel 3 | . . . 3 . . Hover 5 | . . 4 1 . . Flight 2 | . . . 2 . . Utility 18 | . 2 2 3 4 7 Device 6 | . . . 1 3 2 Storage . | . . . . . . Processor 8 | . 2 . 1 . 5 Hackware 3 | . . 2 . 1 . Protection 1 | . . . 1 . . Artifact . | . . . . . . Weapon 22 | 2 7 2 6 3 2 Energy Gun 4 | 1 . . 2 1 . Energy Cannon 4 | . . 2 . 1 1 Ballistic Gun 8 | 1 4 . 2 . 1 Ballistic Cannon . | . . . . . . Launcher 3 | . 3 . . . . Special Weapon . | . . . . . . Impact Weapon . | . . . . . . Slashing Weapon 3 | . . . 2 1 . Piercing Weapon . | . . . . . . Special Melee Weapon . | . . . . . . Unidentified Prototypes . | . . . . . . Parts Lost 38 | . 1 2 10 19 6 Power 8 | . . 2 1 5 . Propulsion 8 | . . . 3 5 . Utility 10 | . . . 2 4 4 Weapon 12 | . 1 . 4 5 2 Highest Loss Streak 11 | . 1 1 8 11 6 Average Slot Usage (%) 82 | . 91 93 71 82 37 Engine 7 | . 14 17 8 3 . Core 5 | . . . 4 9 . Treads 10 | . 27 . 3 10 . Wheel 3 | . . . 5 5 . Hover 4 | . . 31 4 . . Device 3 | . . . . 6 4 Processor 9 | . 19 1 4 7 29 Hackware 16 | . . 20 18 22 . Energy Gun 2 | . 4 . 5 1 . Energy Cannon 5 | . . 21 2 5 . Ballistic Gun 3 | . 19 . 1 . 1 Slashing Weapon 4 | . . . 6 6 . Naked Turns . | . . . . . . Heaviest Build 31 | 9 11 24 20 31 10 Greatest Support 56 | 40 40 27 30 56 20 Greatest Overweight (x) 5 | . 1 1 5 2 2 Average Overweight (x) . | . . . . . . Largest Inventory Capacity 4 | 4 4 4 4 4 4 Average Capacity 4 | 4 4 4 4 4 4 Most Carried 4 | 4 4 4 4 4 4 Average Carried 1 | 1 1 1 1 1 . Final Capacity 4 | 4 4 4 4 4 4 Final Carried 2 | 2 2 1 2 . 1 Class Distribution -------------------- 39% | Hacker-Gladiator 28% | Hacker-Mutant 24% | Mutant 7% | Scavenger-Mutant Dominant Class ---------------- Mutant | -10/Materials Hacker-Mutant | -9/Materials Hacker-Mutant | -8/Materials Hacker-Gladiator | -7/Factory Mutant | -6/Factory Resources | -11 -10 -9 -8 -7 -6 ----------- Run | Scr Mat Mat Mat Fac Fac Matter Collected 877 | 250 225 130 196 76 . Remotely . | . . . . . . Salvage Created 1678 | . 369 394 411 429 75 Parts 117 | . 27 28 23 31 8 Haulers Intercepted . | . . . . . . Recyclers Shooed . | . . . . . . Parts Field Recycled . | . . . . . . Retrieved Matter . | . . . . . . Parts Self-Destructed . | . . . . . . Prevented . | . . . . . . Kills | -11 -10 -9 -8 -7 -6 ------- Run | Scr Mat Mat Mat Fac Fac Combat Hostiles Destroyed 37 | . 9 10 8 9 1 Melee 15 | . . . 5 9 1 Guns 10 | . 7 . 3 . . Cannons 10 | . . 10 . . . AOE 2 | . 2 . . . . Classes Destroyed 7 | . 2 3 1 1 . Operator 1 | . . 1 . . . Watcher 3 | . 2 . . 1 . Swarmer 6 | . . 3 . 3 . Grunt 17 | . 9 3 4 1 . Duelist 2 | . . . 1 1 . Sentry 9 | . . 4 3 1 1 Programmer 3 | . . . . 3 . Best Kill Streak 4 | . 4 4 2 3 1 Combat Bots Only 4 | . 4 4 2 3 1 Max Kills in Single Turn 2 | . 2 2 1 1 1 Gunslinging 1 | . 1 . . . . Exploded 1 | . 1 . . . . Melee 1 | . . . 1 1 1 Uniques/NPCs Destroyed . | . . . . . . Combat | -11 -10 -9 -8 -7 -6 -------- Run | Scr Mat Mat Mat Fac Fac Damage Taken 4722 | . 388 385 983 1691 1275 Core 1874 | . 70 51 272 622 859 Absorbed by Shields . | . . . . . . Core Remaining (%) 64 | 100 72 87 50 11 . Volleys Fired 96 | . 29 24 22 18 3 Largest 2 | . 2 2 2 2 1 Hottest 130 | . 80 120 130 130 80 Shots Fired 143 | . 47 41 32 20 3 Gun 79 | . 43 . 29 7 . Cannon 60 | . . 41 3 13 3 Launcher 4 | . 4 . . . . Special . | . . . . . . Kinetic 42 | . 30 . 12 . . Thermal 97 | . 13 41 20 20 3 Explosive 4 | . 4 . . . . Electromagnetic . | . . . . . . Robot Hit Streak 14 | . 10 5 14 2 2 Robot Miss Streak 6 | . 2 5 2 6 1 Penetration Max . | . . . . . . Secondary Targets 1 | . 1 . . . . Max Gunslinging Chain 1 | . 1 . . . . Shots Hit Robots 119 | . 29 20 42 26 2 Core Hits 75 | . 17 11 13 26 8 Critical Hits 2 | . . . 1 1 . Critical Kills . | . . . . . . Critical Parts Destroyed 2 | . . . 1 1 . Melee Attacks 44 | . . . 21 23 . Impact . | . . . . . . Slashing 44 | . . . 21 23 . Piercing . | . . . . . . Sneak Attacks . | . . . . . . Combat Hostiles . | . . . . . . Follow-up Attacks . | . . . . . . Damage Inflicted 3324 | . 619 439 954 1190 122 Guns 825 | . 389 . 340 96 . Cannons 699 | . . 439 46 162 52 Explosions 230 | . 230 . . . . Melee 1431 | . . . 568 863 . Ramming 139 | . . . . 69 70 Kinetic 432 | . 289 . 143 . . Thermal 1092 | . 100 439 243 258 52 Explosive 230 | . 230 . . . . Electromagnetic . | . . . . . . Impact . | . . . . . . Slashing 1431 | . . . 568 863 . Piercing . | . . . . . . Highest Corruption 11 | . . 3 . 11 3 Average Corruption 3 | . . 2 . 3 2 Corruption Purged . | . . . . . . Effects 42 | . . 13 . 29 . Message Errors 8 | . . 2 . 6 . Matter Fused 12 | . . 5 . 7 . Heat Flow Errors 5 | . . 1 . 4 . Energy Discharges 7 | . . 1 . 6 . Data Loss (minor) 5 | . . 2 . 3 . Misdirections 2 | . . . . 2 . Targeting Errors 3 | . . 2 . 1 . Overload Shots . | . . . . . . Overflow Damage 109 | . . . 25 84 . Projectiles . | . . . . . . Explosions . | . . . . . . Melee 109 | . . . 25 84 . Knockbacks . | . . . . . . Impact . | . . . . . . Kinetic . | . . . . . . Secondary . | . . . . . . Self-Inflicted Damage 50 | . . . . 20 30 Shots . | . . . . . . Rammed 55 | . . . . 31 24 Targets Rammed 56 | . . . . 32 24 Kicked . | . . . . . . Crushed 1 | . . . . 1 . Highest Temperature 325 | . 76 325 210 220 67 Average Temperature 91 | . 26 124 91 73 41 Received Heat Transfer 1137 | . 225 129 324 231 228 Effects 2 | . . 2 . . . Interference 2 | . . 2 . . . Siege Activations . | . . . . . . Robots Corrupted . | . . . . . . Combat Hostiles . | . . . . . . Parts Fried . | . . . . . . Impact Corruptions . | . . . . . . Robots Melted . | . . . . . . Combat Hostiles . | . . . . . . Parts Melted 4 | . . 4 . . . Heat Transferred 2098 | . 296 703 555 444 100 Parts Sabotaged . | . . . . . . Parts Stolen . | . . . . . . Parts Stripped . | . . . . . . Power Chain Reactions . | . . . . . . Missiles Intercepted . | . . . . . . Alert | -11 -10 -9 -8 -7 -6 ------- Run | Scr Mat Mat Mat Fac Fac Peak Influence 282 | . 204 282 144 172 44 Initial 59 | . . 22 59 31 29 Average 64 | . 88 145 58 42 28 Maximum Alert Level 1 | . 1 1 . . . Low Security (%) 96 | 100 97 73 100 100 100 Level 1 3 | . 2 26 . . . Level 2 . | . . . . . . Level 3 . | . . . . . . Level 4 . | . . . . . . Level 5 . | . . . . . . High Security . | . . . . . . Max Security . | . . . . . . Squads Dispatched 9 | . 3 1 1 4 . Investigation 2 | . 1 . . 1 . Extermination 3 | . . . . 3 . Reinforcement 4 | . 2 1 1 . . Assault . | . . . . . . Garrison . | . . . . . . Intercept . | . . . . . . Construction Impeded . | . . . . . . Haulers Reinforced . | . . . . . . Stealth | -11 -10 -9 -8 -7 -6 --------- Run | Scr Mat Mat Mat Fac Fac Distress Signals . | . . . . . . Communications Jammed . | . . . . . . Distress Signals . | . . . . . . Times Spotted 68 | . 16 11 10 25 6 Peak Tracking Total 8 | . 3 3 6 8 5 Tactical Retreats 4 | . 1 . 2 1 . Traps | -11 -10 -9 -8 -7 -6 ------- Run | Scr Mat Mat Mat Fac Fac Traps Triggered 5 | . 1 2 . 1 1 Indirectly . | . . . . . . Trap Hack Attempts . | . . . . . . Triggered . | . . . . . . Disarmed . | . . . . . . Reprogrammed . | . . . . . . Reused . | . . . . . . Traps Extracted . | . . . . . . Installed . | . . . . . . Triggered . | . . . . . . Machines | -11 -10 -9 -8 -7 -6 ---------- Run | Scr Mat Mat Mat Fac Fac Machines Disabled 2 | . 1 1 . . . Max in Single Turn 1 | . 1 1 . . . Garrison Access 1 | . . . . 1 . Machines Sabotaged . | . . . . . . Garrisons Compromised . | . . . . . . Overloaded Fab Kills . | . . . . . . Fab Network Shutdowns . | . . . . . . Hacking | -11 -10 -9 -8 -7 -6 --------- Run | Scr Mat Mat Mat Fac Fac Machines Accessed 6 | . 1 1 1 3 . Terminals 1 | . . . . 1 . Fabricators . | . . . . . . Repair Stations 3 | . 1 1 1 . . Recycling Units 1 | . . . . 1 . Scanalyzers . | . . . . . . Garrison Access 1 | . . . . 1 . Total Hacks 16 | . 4 2 3 7 . Successful 12 | . 3 2 2 5 . Failed 4 | . 1 . 1 2 . Catastrophic 1 | . 1 . . . . Database Lockouts . | . . . . . . Manual . | . . . . . . Terminals 3 | . . . . 3 . Fabricators . | . . . . . . Repair Stations 9 | . 4 2 3 . . Recycling Units 2 | . . . . 2 . Scanalyzers . | . . . . . . Garrison Access 2 | . . . . 2 . Terminal Hacks 2 | . . . . 2 . Record 1 | . . . . 1 . Alert Level 1 | . . . . 1 . Fabricator Hacks . | . . . . . . Repair Station Hacks 7 | . 3 2 2 . . Scan Component 3 | . 1 1 1 . . Repair 3 | . 1 1 1 . . Refit 1 | . 1 . . . . Recycling Unit Hacks 1 | . . . . 1 . Report Inventory 1 | . . . . 1 . Scanalyzer . | . . . . . . Garrison Access Hacks 2 | . . . . 2 . Seal Access 1 | . . . . 1 . Coupler Status 1 | . . . . 1 . Unauthorized Hacks . | . . . . . . Terminals . | . . . . . . Fabricators . | . . . . . . Repair Stations . | . . . . . . Recycling Units . | . . . . . . Scanalyzers . | . . . . . . Garrison Access . | . . . . . . Data Cores Recovered . | . . . . . . Used . | . . . . . . Hacking Detections 3 | . 1 . . 2 . Full Trace Events 1 | . 1 . . . . Feedback Events . | . . . . . . Feedback Blocked . | . . . . . . Robot Schematics Acquired . | . . . . . . Robots Built . | . . . . . . Matter . | . . . . . . Time . | . . . . . . Total Robot Build Rating . | . . . . . . Part Schematics Acquired . | . . . . . . Parts Built . | . . . . . . Matter . | . . . . . . Time . | . . . . . . Total Part Build Rating . | . . . . . . Parts Repaired 2 | . . 1 1 . . Time 102 | . 26 38 38 . . Parts Recycled . | . . . . . . Recycled Matter . | . . . . . . Retrieved Matter . | . . . . . . Retrieved Components . | . . . . . . Parts Scanalyzed . | . . . . . . Part Schematics Acquired . | . . . . . . Parts Damaged . | . . . . . . Bothacking | -11 -10 -9 -8 -7 -6 ------------ Run | Scr Mat Mat Mat Fac Fac Used RIF Installer . | . . . . . . Robots Hacked . | . . . . . . Non-combat . | . . . . . . Combat . | . . . . . . Robot Hacks Applied . | . . . . . . Relay Couplers Released . | . . . . . . Robots Rewired . | . . . . . . Allies Hacked . | . . . . . . Hacks Repelled . | . . . . . . Allies | -11 -10 -9 -8 -7 -6 -------- Run | Scr Mat Mat Mat Fac Fac Total Allies . | . . . . . . Largest Group . | . . . . . . Highest-Rated Group . | . . . . . . Highest-Rated Ally . | . . . . . . Total Orders . | . . . . . . Ally Attacks . | . . . . . . Total Damage . | . . . . . . Kills . | . . . . . . Allies Corrupted . | . . . . . . Allies Melted . | . . . . . . Intel | -11 -10 -9 -8 -7 -6 ------- Run | Scr Mat Mat Mat Fac Fac Robot Analysis Total . | . . . . . . Derelict Logs Recovered . | . . . . . . Drone Launches . | . . . . . . Drone Recoveries . | . . . . . . Exploration | -11 -10 -9 -8 -7 -6 ------------- Run | Scr Mat Mat Mat Fac Fac Turns Passed 4439 | 78 803 554 662 2177 165 Spaces Moved 3015 | 49 371 612 412 1409 162 Core 256 | 10 . . 39 48 159 Treads 1454 | 39 357 . 105 950 3 Legs 12 | . 6 6 . . . Wheels 517 | . . . 106 411 . Hover 753 | . 8 606 139 . . Flight 23 | . . . 23 . . Fastest Speed 40 | 50 150 52 40 50 50 Average Speed 113 | 137 160 52 103 134 68 Slowest Speed 300 | 160 180 150 300 160 160 Overloaded Moves . | . . . . . . Propulsion Burnouts . | . . . . . . Robots Hopped . | . . . . . . Cave-ins Triggered . | . . . . . . Exploration Rate (%) 24 | 4 46 42 21 29 3 Regions Visited 5 Branch Regions . Pre-discovered Areas . | . . . . . . Known Exits Taken . | . . . . . . Unknown Exits Taken 5 | 1 1 1 1 1 . Scrap Searched . | . . . . . . Spaces Dug 12 | . 12 . . . . Terrain Destroyed 26 | . 21 5 . . . Melee . | . . . . . . Projectile 5 | . . 5 . . . AOE 21 | . 21 . . . . Terrain Rammed . | . . . . . . Walls Destroyed . | . . . . . . Machines Disabled . | . . . . . . Actions | -11 -10 -9 -8 -7 -6 --------- Run | Scr Mat Mat Mat Fac Fac Total 3822 | 60 536 805 586 1621 214 Wait 441 | . 113 140 77 111 . Move 3010 | 48 370 611 411 1408 162 Hop . | . . . . . . Pick Up 72 | 7 6 11 24 12 12 Fast Attach . | . . . . . . Attach 66 | 5 9 10 18 13 11 Detach 8 | . 5 1 1 1 . Swap 4 | . 1 . 3 . . Drop 25 | . 3 8 9 3 2 Fire 96 | . 29 24 22 18 3 Melee 44 | . . . 21 23 . Ram 41 | . . . . 17 24 Kick . | . . . . . . Crush 15 | . . . . 15 . Escape Stasis . | . . . . . . Rewire . | . . . . . . Trap . | . . . . . . Miscellaneous . | . . . . . . Route ------- -11/Scrapyard -10/Materials (discovered 2 exits: *Mat x2) -9/Materials (discovered 3 exits: *Mat x2 / [*Min]) -8/Materials -7/Factory -6/Factory History --------- Turn | Location | Event 8 | -11/Scrapyard | Discovered new exit (range 16) 79 | -11/Scrapyard | Entered Materials 304 | -10/Materials | Build established: Mutant 541 | -10/Materials | Discovered new exit (range 6) 801 | -10/Materials | Discovered new exit (range 4) 882 | -10/Materials | Entered another Materials area 882 | -9/Materials | Evolved 2 slots: Power x1, Propulsion x1 1036 | -9/Materials | Discovered new exit (range 16) 1123 | -9/Materials | Repaired Airjet 1128 | -9/Materials | Discovered new exit (range 15) 1184 | -9/Materials | Build established: Hacker-Mutant 1319 | -9/Materials | Discovered new exit (range 9) 1436 | -9/Materials | Entered another Materials area 1436 | -8/Materials | Evolved 2 slots: Utility x1, Weapon x1 1626 | -8/Materials | Lost 8 parts (1p3n1u3w) 1913 | -8/Materials | Repaired Katana 2090 | -8/Materials | Discovered new exit (range 10) 2098 | -8/Materials | Entered Factory 2098 | -7/Factory | Evolved 2 slots: Utility x2 2378 | -7/Factory | Lost 5 parts (1p2n2w) 2725 | -7/Factory | Build established: Hacker-Gladiator 4243 | -7/Factory | System corruption reached 10% 4250 | -7/Factory | Core integrity fell below 50% 4264 | -7/Factory | Discovered new exit (range 15) 4272 | -7/Factory | Core integrity fell below 20% 4273 | -7/Factory | Lost 11 parts (3p2n4u2w) 4275 | -7/Factory | Entered another Factory area 4275 | -6/Factory | Evolved 2 slots: Utility x2 4421 | -6/Factory | Core integrity fell below 50% 4430 | -6/Factory | Core integrity fell below 20% 4440 | -6/Factory | Destroyed by S-27 Virus with Autogun Last Messages --------------- 04410_ Slammed into Y-54 Guardian. 04411_ U-05 Engineer lays Concrete. 04414_ U-05 Engineer builds a Wall. 04415_ Acquired Plasma Cannon. 04418_ U-05 Engineer lays Concrete. 04420_ C-30 ARC bursts open, deploying its payload. 04420_ S-27 Virus unfolds itself. 04421_ U-05 Engineer builds a Wall. 04422_ Plasma Cannon destroyed. 04424_ Slammed into Y-54 Guardian. 04425_ U-05 Engineer builds a Wall. 04426_ Slammed into Y-54 Guardian. 04426_ Broken Adv. Melee Analysis Suite destroyed. 04427_ Slammed into Y-54 Guardian. 04429_ Y-54 Guardian destroyed. 04429_ U-05 Engineer builds a Wall. 04431_ Acquired Imp. Deuterium Engine. 04432_ Acquired Lgt. Treads. 04436_ Adv. Melee Analysis Suite destroyed. 04440_ Acquired Gatling Laser. Map ----- +----------------------------------------------------+ | ?????????????????????????????????????????????????? | | ?????????????????????????????????????????????????? | | ?????????????????????????????????????????????????? | | ?????????????????????????????????????????????????? | | ?????????????????????????????????????????????????? | | ?????????????????????????????????????????????????? | | ?????????????????????????????????????????????????? | | ?????????????????????????????????????????????????? | | ?????????????????????????????????????????????????? | | ?????????????????????????????????????????????????? | | ?????????????????????????????????????????????????? | | ?????????????????????????????????????????????????? | | ?????????????????????????????????????????????????? | | ?????????????????????????????????????????????????? | | ?????????????????????????????????????????????????? | | ?????????????????????????????????????????????????? | | ?????????????????????????????????????????????????? | | ?????????????????????????????????????????????????? | | ?????????????????????????????????????????????????? | | ?????????????????????????????????????????????????? | | ?????????????????????????????????????????????????? | | ????????????###################??????????????????? | | ????????????# #??????????????????? | | ????????????# ! #??????????????????? | | ????????????# !![! #??????????????????? | | ????????????? "" ! @% ! #??????????????????? | | ????????????? "Y %%= #??????????????????? | | ???????????# "" ] %% % #??????????????????? | | ????????????# #??????????????????? | | ????????????####;;###s;;;;;####??????????????????? | | ???????????????#### u ;###?????????????????????? | | ?????????????????## ss ;#???????????????????????? | | ?????????????????## ##???????????????????????? | | ?????????????######% #????????????????????????? | | ?????????????# """ s #????????????????????????? | | ?????? ??????# "T" #????????????????????????? | | ?????"""???### #????????????????????????? | | ?????""" ??# #????????????????????????? | | ????"""" ### #????????????????????????? | | ????"""" + #????????????????????????? | | # """ #????????????????????????? | | ??+ """ #????????????????????????? | | ?? ????# """ #????????????????????????? | | ??????#### #????????????????????????? | | """ #????????????????????????? | | """ #????????????????????????? | | """ #????????????????????????? | | +?????????????##########?? | | # ????????????# #?? | | ? ######### #?????????????# #?? | +----------------------------------------------------+ Best States ------------- Heat Dissipation 48 Energy Generation 25 Energy Capacity 430 Matter Stores 300 Matter Capacity 300 Sight Range 16 Terrain Scan Density 10 ECM Strength 2 Armor Coverage 150 Resistance: TH 10 Evasion (%) 62 Targeting Accuracy 12 Melee Accuracy 40 Recoil Reduction 2 Energy Filtering 30 Offensive Hacking 10 Defensive Hacking 20 Item Schematics ----------------- None Robot Schematics ------------------ None Fabricated ------------ Nothing Alien Tech Used ----------------- None Achievements -------------- System Compromised Universal Adapter Challenges ------------ None Game ------ Seed ChargeSkeletonNukerbomber Manual? 0 Play Time 00:41:33 Cumulative 5.0 hours Start 2020.11.29 @ 09:26:40 End 2020.11.29 @ 10:33:33 Sessions 1 Manual Loads 0 Difficulty Rogue Special Mode Halloween2020/ForbiddenLore Game No. 11 Rogue 11 Adventurer 0 Explorer 0 Win Type - Total 0 Types 0/0/0/0/0/0/0/0/0 Lore% 3 Gallery% 10 Achievement% 8 Wizard Run 0 Options --------- ASCII 0 Keyboard 0 Movement Arrows Keybinds 0 Fullscreen 1 Font 16/CogWide Map View 76x50 Tactical HUD 1 Map Filters NONE Filters NONE Steam 1 RUN: 03d574c9-699a-45c2-89af-10ff9ff128c6